bitfinex-derivatives/quotes_BTCF0:USTF0_20241116
["timestamp","ask_amount","ask_price","bid_price","bid_amount"]
[1731740690985,0.00012155,91238.0,91228.0,0.3608]
[1731740691186,0.00012155,91238.0,91229.0,0.01712688]
[1731740691386,0.00012155,91238.0,91228.0,0.3608]
[1731740691574,0.00012155,91238.0,91229.0,0.01712671]
[1731740691791,0.00012155,91238.0,91230.0,0.01712671]
[1731740691981,0.00012155,91238.0,91228.0,0.3608]
[1731740692286,0.00012155,91238.0,91225.0,0.36092341]
[1731740692476,0.00012155,91238.0,91225.0,0.00012341]
[1731740694090,0.3608,91226.0,91225.0,0.00012341]
[1731740697386,0.0303,91234.0,91225.0,0.00012341]
[1731740697621,0.3608,91227.0,91225.0,0.00012341]
[1731740698780,0.3608,91227.0,91225.0,3.32e-06]
[1731740699891,0.46461684,91227.0,91225.0,3.32e-06]
[1731740702699,0.3608,91227.0,91225.0,3.32e-06]
[1731740709096,0.43265684,91226.0,91225.0,3.32e-06]
[1731740709304,0.43265684,91226.0,91215.0,0.0051]
[1731740709607,0.46461684,91216.0,91209.0,0.0051]
[1731740709792,0.3608,91214.0,91202.0,0.0051]
[1731740709992,0.3608,91203.0,91197.0,0.0051]
[1731740710195,0.3608,91203.0,91195.0,0.05250611]
[1731740710901,0.3608,91203.0,91193.0,0.08152]
[1731740712103,0.3608,91203.0,91201.0,0.01713308]
[1731740712303,0.3608,91203.0,91193.0,0.08152]
[1731740712499,0.3608,91203.0,91201.0,0.01713309]
[1731740712696,0.3608,91203.0,91191.0,0.14450384]
[1731740712904,0.0331,91213.0,91201.0,0.01713247]
[1731740713102,0.0331,91213.0,91202.0,0.01713247]
[1731740713304,0.0331,91213.0,91203.0,0.01713247]
[1731740713601,0.0331,91213.0,91204.0,0.01713247]
[1731740713800,0.3608,91205.0,91195.0,0.0051]
[1731740713995,0.3608,91205.0,91201.0,0.01713294]
[1731740714193,0.3608,91205.0,91195.0,0.0051]
[1731740714395,0.3608,91205.0,91201.0,0.0171331]
[1731740714604,0.3608,91205.0,91202.0,0.01713321]
[1731740714805,0.3608,91205.0,91203.0,0.01713321]
[1731740715000,0.3608,91205.0,91195.0,0.0051]
[1731740715206,0.3608,91205.0,91201.0,0.01713309]
[1731740715406,0.3608,91205.0,91195.0,0.0051]
[1731740715597,0.3608,91205.0,91201.0,0.01713322]
[1731740715802,0.3608,91205.0,91202.0,0.01713322]
[1731740715998,0.3608,91205.0,91203.0,0.0171329]
[1731740716201,0.3608,91205.0,91204.0,0.01713277]
[1731740716509,0.3608,91205.0,91204.0,0.0445452]
[1731740716699,0.3608,91205.0,91204.0,0.04454497]
[1731740716894,0.3608,91205.0,91195.0,0.0051]
[1731740717095,0.3608,91205.0,91201.0,0.04454497]
[1731740717311,0.3608,91205.0,91202.0,0.04454497]
[1731740717312,0.16333981,91203.0,91202.0,0.04454497]
[1731740718006,0.16333981,91204.0,91202.0,0.04454497]
[1731740718309,0.52413981,91205.0,91203.0,0.04454497]
[1731740718508,0.52358814,91205.0,91204.0,0.04454497]
[1731740718807,0.3608,91205.0,91204.0,0.04454497]
[1731740719209,0.16278814,91214.0,91204.0,0.04814746]
[1731740719411,0.16278814,91213.0,91206.0,0.01706684]
[1731740719608,0.16278814,91214.0,91207.0,0.04454497]
[1731740719809,0.16278814,91213.0,91208.0,0.04454497]
[1731740720000,0.16278814,91213.0,91208.0,0.3608]
[1731740720309,0.16278814,91214.0,91209.0,0.04454028]
[1731740720500,0.16278814,91214.0,91210.0,0.04454028]
[1731740720702,0.16278814,91214.0,91211.0,0.04454028]
[1731740720703,0.52358814,91214.0,91211.0,0.04454028]
[1731740721013,0.52358814,91214.0,91212.0,0.04454028]
[1731740721014,0.16278814,91213.0,91212.0,0.04454028]
[1731740721214,0.05328887,91213.0,91212.0,0.04454028]
[1731740721510,0.2493287,91213.0,91212.0,0.04454028]
[1731740721909,0.05328887,91213.0,91212.0,0.04454028]
[1731740722800,0.19552148,91214.0,91212.0,0.04454028]
[1731740723001,0.24880863,91213.0,91207.0,0.01706739]
[1731740723214,0.24880863,91213.0,91203.0,0.18537684]
[1731740723215,0.19553095,91211.0,91208.0,0.06161077]
[1731740723410,0.24881982,91211.0,91209.0,0.04454338]
[1731740723604,0.05328973,91210.0,91203.0,0.3622]
[1731740723806,0.3608,91217.0,91204.0,0.0589721]
[1731740723807,0.16296833,91208.0,91204.0,0.0589721]
[1731740724011,0.16296833,91208.0,91204.0,0.01082697]
[1731740724214,0.16296833,91207.0,91205.0,0.0589726]
[1731740724513,0.16296833,91207.0,91206.0,0.04454126]
[1731740726016,0.16296833,91207.0,91206.0,0.04454127]
[1731740728207,0.24882116,91212.0,91206.0,0.04454128]
[1731740728407,0.24882116,91212.0,91203.0,0.3608]
[1731740728408,0.05329026,91211.0,91207.0,0.04454128]
[1731740728619,0.05329026,91210.0,91208.0,0.04454128]
[1731740728815,0.05329026,91209.0,91203.0,0.3608]
[1731740729117,0.16309059,91207.0,91204.0,0.04810671]
[1731740729318,0.16309059,91207.0,91205.0,0.04454131]
[1731740729617,0.16309059,91207.0,91206.0,0.04454131]
[1731740732012,0.16309059,91207.0,91206.0,0.04454135]
[1731740732208,0.16309059,91208.0,91206.0,0.04454135]
[1731740732409,0.16309059,91208.0,91203.0,0.3608]
[1731740732410,0.16309059,91208.0,91207.0,0.04454135]
[1731740733515,0.16309059,91208.0,91207.0,0.00187302]
[1731740734210,0.16313705,91208.0,91203.0,0.3608]
[1731740734521,0.16313705,91208.0,91204.0,0.00357172]
[1731740734719,0.16313705,91208.0,91203.0,0.3608]
[1731740734909,0.16313705,91208.0,91204.0,0.00357172]
[1731740735123,0.16313705,91209.0,91205.0,0.00357172]
[1731740735313,0.16313705,91209.0,91203.0,0.3608]
[1731740735618,0.16313705,91209.0,91204.0,0.01431815]
[1731740735913,0.16313705,91209.0,91205.0,0.01074211]
[1731740736119,0.16313705,91208.0,91203.0,0.3608]
[1731740736318,0.16313705,91209.0,91204.0,0.00356524]
[1731740736511,0.16313705,91209.0,91205.0,0.00356524]
[1731740736710,0.16313705,91209.0,91203.0,0.3608]
[1731740737023,0.16313705,91209.0,91204.0,0.00356524]
[1731740737215,0.16313705,91209.0,91203.0,0.3608]
[1731740737216,0.16313705,91209.0,91205.0,0.00356524]
[1731740737519,0.16313705,91209.0,91203.0,0.3608]
[1731740737821,0.16313705,91209.0,91204.0,0.00356707]
[1731740738016,0.16313705,91209.0,91205.0,0.00356707]
[1731740738206,0.16313705,91209.0,91203.0,0.3608]
[1731740738409,0.16313705,91209.0,91204.0,0.00354034]
[1731740738721,0.16313705,91209.0,91203.0,0.3608]
[1731740738722,0.16313705,91209.0,91205.0,0.00354034]
[1731740738912,0.16313705,91209.0,91203.0,0.3608]
[1731740739117,0.16313705,91208.0,91203.0,0.3608]
[1731740739326,0.16313705,91209.0,91203.0,0.3608]
[1731740739916,0.16313705,91210.0,91203.0,0.3608]
[1731740740110,0.16313705,91209.0,91203.0,0.3608]
[1731740740314,0.16313705,91210.0,91204.0,0.00354419]
[1731740740516,0.16313705,91210.0,91205.0,0.00354419]
[1731740740710,0.16313705,91210.0,91203.0,0.3608]
[1731740740921,0.16313705,91210.0,91204.0,0.00354419]
[1731740741110,0.16313705,91210.0,91205.0,0.00354419]
[1731740741309,0.16313705,91208.0,91203.0,0.3608]
[1731740741515,0.16313705,91208.0,91204.0,0.00354191]
[1731740741717,0.16313705,91208.0,91205.0,0.00354191]
[1731740741911,0.16313705,91208.0,91203.0,0.3608]
[1731740742111,0.16313705,91208.0,91204.0,0.00354191]
[1731740742328,0.16313705,91211.0,91205.0,0.0142492]
[1731740742520,0.16313705,91211.0,91206.0,0.00354191]
[1731740742725,0.16313705,91211.0,91203.0,0.3608]
[1731740742726,0.06816817,91209.0,91203.0,0.3608]
[1731740743028,0.06816817,91209.0,91204.0,0.00356437]
[1731740743217,0.06816817,91209.0,91205.0,0.00356437]
[1731740743420,0.06816817,91209.0,91203.0,0.3608]
[1731740743724,0.06816817,91209.0,91204.0,0.00356102]
[1731740743923,0.06816817,91209.0,91205.0,0.00356102]
[1731740744124,0.06816817,91209.0,91203.0,0.3608]
[1731740744326,0.06816817,91211.0,91202.0,0.3608]
[1731740745526,0.06816817,91211.0,91203.0,0.01713113]
[1731740745718,0.06816817,91211.0,91202.0,0.3608]
[1731740745719,0.06816817,91211.0,91204.0,0.01713113]
[1731740746031,0.06816817,91211.0,91205.0,0.01713113]
[1731740746326,0.23130522,91211.0,91206.0,0.01713113]
[1731740746526,0.23130522,91211.0,91207.0,0.01713113]
[1731740746828,0.23130522,91211.0,91208.0,0.01713113]
[1731740747124,0.16313705,91210.0,91209.0,0.01713113]
[1731740747326,0.23130522,91211.0,91209.0,0.01713113]
[1731740747512,0.23130522,91211.0,91210.0,0.01713113]
[1731740747720,0.1214586,91211.0,91210.0,0.01713113]
[1731740748236,0.06816817,91211.0,91210.0,0.01713113]
[1731740748424,0.06816817,91211.0,91210.0,0.01713133]
[1731740749824,0.06816817,91211.0,91206.0,0.2630064]
[1731740750020,0.16338908,91210.0,91207.0,0.01713131]
[1731740750327,0.16338908,91210.0,91208.0,0.01713131]
[1731740750529,0.16338908,91210.0,91209.0,0.01713131]
[1731740753715,0.12145855,91210.0,91209.0,0.01713131]
[1731740754422,0.12145855,91210.0,91200.0,0.1]
[1731740754625,0.16336397,91205.0,91200.0,0.1]
[1731740755524,0.16336397,91206.0,91200.0,0.1]
[1731740755828,0.16336397,91206.0,91200.0,0.1423957]
[1731740756219,0.16336397,91206.0,91200.0,0.5031957]
[1731740758122,0.16336397,91208.0,91201.0,0.06816817]
[1731740758426,0.13066443,91202.0,91201.0,0.06816817]
[1731740758628,0.13066413,91202.0,91201.0,0.06816817]
[1731740760319,0.13066413,91203.0,91201.0,0.13633634]
[1731740760521,0.13066413,91209.0,91202.0,0.21769634]
[1731740760821,0.13066413,91210.0,91208.0,0.42896817]
[1731740761020,0.13066413,91210.0,91209.0,0.06816817]
[1731740761337,0.13066413,91221.0,91209.0,0.57308409]
[1731740761528,0.13066413,91222.0,91220.0,0.3608]
[1731740761830,0.13066413,91224.0,91221.0,0.13633634]
[1731740762036,0.13066413,91225.0,91223.0,0.06816817]
[1731740762326,0.13066413,91226.0,91221.0,0.06816817]
[1731740762527,0.13066413,91226.0,91220.0,0.3608]
[1731740762528,0.13066413,91226.0,91225.0,0.06816817]
[1731740762718,0.13066413,91227.0,91225.0,0.06816817]
[1731740762924,0.13066413,91227.0,91226.0,0.10056817]
[1731740763133,0.13066413,91230.0,91226.0,0.10056817]
[1731740763328,0.13066413,91232.0,91229.0,0.42896817]
[1731740763525,0.00164494,91235.0,91231.0,0.06816817]
[1731740764832,0.00164494,91235.0,91230.0,0.18543623]
[1731740768134,0.00012155,91238.0,91230.0,0.18543623]
[1731740768630,0.00012155,91238.0,91231.0,0.02069403]
[1731740768824,0.00012155,91238.0,91232.0,0.02069403]
[1731740769025,0.00012155,91238.0,91233.0,0.01712648]
[1731740769236,0.00012155,91238.0,91234.0,0.01712648]
[1731740769429,0.00012155,91238.0,91230.0,0.18543623]
[1731740769631,0.00012155,91238.0,91231.0,0.02069304]
[1731740769838,0.00012155,91238.0,91232.0,0.02069304]
[1731740770137,0.00012155,91238.0,91230.0,0.18543623]
[1731740770451,0.00012155,91238.0,91229.0,0.4031164]
[1731740770452,0.00012155,91238.0,91231.0,0.00356328]
[1731740770634,0.3608,91235.0,91229.0,0.0437164]
[1731740770840,0.00012155,91238.0,91230.0,0.00352676]
[1731740771026,0.00012155,91238.0,91229.0,0.14611263]
[1731740771334,0.00012155,91238.0,91230.0,0.0324]
[1731740773134,0.00012155,91238.0,91229.0,0.08164]
[1731740773530,0.00012155,91238.0,91229.0,0.12305273]
[1731740773734,0.13078568,91238.0,91229.0,0.04141273]
[1731740773930,0.13078568,91238.0,91228.0,0.3608]
[1731740774136,0.00012155,91238.0,91228.0,0.3608]
[1731740774342,0.00012155,91238.0,91228.0,0.40257475]
[1731740774544,0.00012155,91238.0,91229.0,0.0313]
[1731740775632,0.00012155,91238.0,91229.0,0.11294]
[1731740777139,0.00012155,91238.0,91230.0,0.00353043]
[1731740777337,0.00012155,91238.0,91229.0,0.0313]
[1731740777649,0.00012155,91238.0,91230.0,0.08517033]
[1731740777944,0.00012155,91238.0,91230.0,0.08164]
[1731740778145,0.00012155,91238.0,91231.0,0.00352728]
[1731740778341,0.00012155,91238.0,91230.0,0.08164]
[1731740778545,0.00012155,91238.0,91231.0,0.00352734]
[1731740778743,0.00012155,91238.0,91232.0,0.3608]
[1731740780246,0.00012155,91238.0,91233.0,0.00352756]
[1731740780545,0.00012155,91238.0,91232.0,0.3608]
[1731740782532,0.00012155,91238.0,91237.0,0.10379623]
[1731740783146,0.00012155,91238.0,91232.0,0.3608]
[1731740783338,0.00012155,91238.0,91233.0,0.01712583]
[1731740783538,0.00012155,91238.0,91234.0,0.01712583]
[1731740783745,0.00012155,91238.0,91235.0,0.09876583]
[1731740783949,0.00012155,91238.0,91235.0,0.08164]
[1731740784542,0.00012155,91238.0,91236.0,0.01712584]
[1731740784744,0.00012155,91238.0,91235.0,0.08164]
[1731740784945,0.00012155,91238.0,91236.0,0.01712584]
[1731740785252,0.00012155,91238.0,91235.0,0.08164]
[1731740785445,0.00012155,91238.0,91236.0,0.0171259]
[1731740785645,0.00012155,91238.0,91235.0,0.08164]
[1731740785646,0.00012155,91238.0,91237.0,0.01712592]
[1731740787447,0.00012155,91238.0,91237.0,0.37792592]
[1731740788448,0.00012155,91238.0,91237.0,0.3608]
[1731740788652,0.00012155,91238.0,91237.0,0.37792591]
[1731740794855,0.00012155,91238.0,91237.0,0.40532728]
[1731740795349,0.00012155,91238.0,91237.0,0.3608]
[1731740795549,0.00012155,91238.0,91237.0,0.40532722]
[1731740796854,0.13085558,91238.0,91237.0,0.41993359]
[1731740797159,0.16336397,91242.0,91237.0,0.41993359]
[1731740797347,0.13085976,91239.0,91238.0,0.05913359]
[1731740797540,0.13085976,91240.0,91238.0,0.12725591]
[1731740797744,0.13085976,91240.0,91239.0,0.05913359]
[1731740798354,0.16344395,91245.0,91239.0,0.05913359]
[1731740798548,0.16336397,91244.0,91240.0,0.04452722]
[1731740798756,0.16336397,91244.0,91241.0,0.04452722]
[1731740798945,0.16336397,91244.0,91242.0,0.04452722]
[1731740799145,0.16336397,91244.0,91243.0,0.09840585]
[1731740801158,0.16344395,91245.0,91243.0,0.12580616]
[1731740801355,0.16344395,91245.0,91244.0,0.01712585]
[1731740801551,7.998e-05,91245.0,91244.0,0.01712585]
[1731740802056,7.998e-05,91245.0,91243.0,0.08128]
[1731740802243,7.998e-05,91245.0,91244.0,0.01712518]
[1731740802855,7.998e-05,91245.0,91244.0,0.04452526]
[1731740803058,7.998e-05,91245.0,91244.0,0.01712518]
[1731740805559,0.16344395,91245.0,91244.0,0.01712518]
[1731740808564,0.05335278,91245.0,91244.0,0.00080642]
[1731740808951,7.998e-05,91245.0,91244.0,0.00080642]
[1731740809154,7.998e-05,91245.0,91242.0,0.08128]
[1731740809457,0.16359926,91243.0,91242.0,0.08128]
[1731740809662,0.16359926,91243.0,91242.0,0.10320092]
[1731740810065,0.16359926,91243.0,91242.0,0.13060201]
[1731740810254,0.16359926,91243.0,91242.0,0.10320092]
[1731740810957,0.16361338,91243.0,91242.0,0.13060198]
[1731740811152,7.998e-05,91245.0,91242.0,0.10320092]
[1731740812954,7.998e-05,91245.0,91243.0,0.02740144]
[1731740813151,7.998e-05,91245.0,91242.0,0.10320092]
[1731740813465,7.998e-05,91245.0,91243.0,0.02740143]
[1731740813664,7.998e-05,91245.0,91242.0,0.10320092]
[1731740813860,7.998e-05,91245.0,91243.0,0.02740134]
[1731740814070,7.998e-05,91245.0,91242.0,0.10320092]
[1731740814256,7.998e-05,91245.0,91243.0,0.02740141]
[1731740814457,7.998e-05,91245.0,91242.0,0.10320092]
[1731740814659,7.998e-05,91245.0,91243.0,0.02740115]
[1731740814952,7.998e-05,91245.0,91244.0,0.02740115]
[1731740815664,0.05335332,91245.0,91244.0,0.02740115]
[1731740815855,7.998e-05,91245.0,91244.0,0.02740115]
[1731740816565,7.998e-05,91245.0,91244.0,0.22457409]
[1731740816769,7.998e-05,91245.0,91244.0,0.02740115]
[1731740817061,7.998e-05,91245.0,91244.0,0.19717206]
[1731740817268,7.998e-05,91245.0,91242.0,0.10320092]
[1731740818070,7.998e-05,91245.0,91243.0,0.02740082]
[1731740818366,7.998e-05,91245.0,91244.0,0.02740082]
[1731740818570,0.16368485,91245.0,91244.0,0.02740082]
[1731740819174,0.16368485,91245.0,91242.0,0.10320092]
[1731740819360,7.998e-05,91245.0,91242.0,0.10320092]
[1731740819754,0.16368485,91245.0,91242.0,0.10320092]
[1731740820557,0.16368485,91245.0,91243.0,0.01712547]
[1731740820758,0.16368485,91245.0,91244.0,0.01712547]
[1731740820759,7.998e-05,91245.0,91244.0,0.01712547]
[1731740821274,7.998e-05,91245.0,91244.0,0.01712578]
[1731740822264,0.32887998,91245.0,91244.0,0.01712578]
[1731740822473,0.45027547,91245.0,91230.0,0.2628922]
[1731740822668,0.23173356,91233.0,91227.0,0.2679922]
[1731740822974,0.23173356,91233.0,91227.0,0.2628922]
[1731740822975,0.19401124,91232.0,91227.0,0.2628922]
[1731740823274,0.19401124,91232.0,91225.0,0.08128]
[1731740823275,0.13082543,91228.0,91226.0,0.66598688]
[1731740823475,0.13082543,91228.0,91227.0,0.00359606]
[1731740823672,0.13082543,91228.0,91226.0,0.40309468]
[1731740823876,0.13082543,91227.0,91226.0,0.40309468]
[1731740824172,0.13082543,91228.0,91226.0,0.40309468]
[1731740824369,0.13082543,91229.0,91226.0,0.40309468]
[1731740824571,0.13082543,91230.0,91226.0,0.40309468]
[1731740824763,0.13082543,91230.0,91227.0,0.00353902]
[1731740824964,0.13082543,91230.0,91226.0,0.40309468]
[1731740825185,0.13082543,91231.0,91227.0,0.00353902]
[1731740825365,0.13082543,91231.0,91226.0,0.40309468]
[1731740825566,0.0304,91232.0,91227.0,0.26643076]
[1731740825774,0.13082543,91231.0,91228.0,0.00353856]
[1731740826075,0.13082543,91231.0,91226.0,0.40309468]
[1731740826076,0.19401124,91232.0,91226.0,0.40309468]
[1731740826265,0.13072423,91227.0,91226.0,0.40309468]
[1731740827173,0.13072423,91228.0,91226.0,0.40309468]
[1731740827570,0.06812232,91227.0,91218.0,0.08128]
[1731740827772,0.13069135,91224.0,91218.0,0.08128]
[1731740827965,0.13069135,91223.0,91218.0,0.08128]
[1731740828276,0.06812232,91227.0,91218.0,0.08128]
[1731740828277,0.13069135,91224.0,91218.0,0.08128]
[1731740829275,0.13069135,91225.0,91218.0,0.08128]
[1731740829569,0.13069135,91225.0,91218.0,0.12227292]
[1731740830372,0.13069135,91226.0,91218.0,0.12227292]
[1731740831164,0.19881367,91227.0,91218.0,0.12227292]
[1731740831367,0.13069135,91226.0,91218.0,0.12227292]
[1731740831676,0.3608,91221.0,91214.0,0.0051]
[1731740831980,0.3608,91221.0,91207.0,0.00674441]
[1731740831981,0.49149135,91221.0,91207.0,0.00674441]
[1731740832171,0.49149135,91221.0,91211.0,0.02192464]
[1731740833172,0.3608,91221.0,91211.0,0.02192464]
[1731740833475,0.3608,91221.0,91208.0,0.08128]
[1731740833778,0.3608,91221.0,91209.0,0.00355588]
[1731740833969,0.3608,91221.0,91210.0,0.00355588]
[1731740834172,0.3925,91221.0,91211.0,0.00355588]
[1731740834474,0.3925,91221.0,91208.0,0.08128]
[1731740834475,0.3925,91221.0,91212.0,0.01713037]
[1731740834673,0.3925,91221.0,91213.0,0.01713037]
[1731740834868,0.3925,91221.0,91209.0,0.08128]
[1731740835072,0.3925,91221.0,91212.0,0.06812232]
[1731740835279,0.3925,91221.0,91213.0,0.01713037]
[1731740835576,0.3925,91221.0,91217.0,0.06812232]
[1731740835577,0.3608,91221.0,91217.0,0.06812232]
[1731740835773,0.3608,91221.0,91218.0,0.01712963]
[1731740835972,0.3608,91221.0,91219.0,0.01712963]
[1731740836182,0.3608,91221.0,91217.0,0.06812232]
[1731740836370,0.3608,91221.0,91218.0,0.0171293]
[1731740836571,0.3608,91221.0,91217.0,0.06812232]
[1731740836572,0.3608,91221.0,91219.0,0.0171293]
[1731740836783,0.3608,91221.0,91217.0,0.06812232]
[1731740836976,0.3608,91221.0,91218.0,0.01712931]
[1731740837280,0.3608,91221.0,91219.0,0.01712931]
[1731740837485,0.3608,91221.0,91217.0,0.06812232]
[1731740837676,0.3608,91221.0,91218.0,0.01712931]
[1731740837876,0.3608,91221.0,91219.0,0.01712931]
[1731740838083,0.3608,91221.0,91217.0,0.06812232]
[1731740838278,0.3608,91221.0,91218.0,0.0171293]
[1731740838474,0.3608,91221.0,91219.0,0.0171293]
[1731740838675,0.3608,91221.0,91217.0,0.10943481]
[1731740838877,0.3608,91221.0,91218.0,0.01712929]
[1731740839182,0.3608,91221.0,91219.0,0.01712929]
[1731740839482,0.3608,91221.0,91217.0,0.10943481]
[1731740839483,0.3608,91221.0,91220.0,0.01712929]
[1731740841388,0.3608,91221.0,91217.0,0.04131249]
[1731740841583,0.3608,91221.0,91218.0,0.0171293]
[1731740841881,0.0051,91232.0,91220.0,0.42892232]
[1731740842087,0.13069135,91237.0,91231.0,0.06812232]
[1731740842273,0.0051,91239.0,91231.0,0.06812232]
[1731740842274,0.13069135,91239.0,91231.0,0.06812232]
[1731740842477,0.13069135,91242.0,91236.0,0.06812232]
[1731740842674,0.13233572,91247.0,91237.0,0.0328]
[1731740842876,0.00164437,91247.0,91238.0,0.06812232]
[1731740843382,0.13233572,91247.0,91238.0,0.06812232]
[1731740843591,0.00164437,91247.0,91238.0,0.06812232]
[1731740844083,0.13233572,91247.0,91238.0,0.06812232]
[1731740844786,0.13233572,91247.0,91238.0,0.14940232]
[1731740845382,0.00164437,91247.0,91238.0,0.14940232]
[1731740845677,0.13233572,91247.0,91238.0,0.14940232]
[1731740846581,0.13077133,91245.0,91238.0,0.14940232]
[1731740847384,0.13077133,91245.0,91243.0,0.06812232]
[1731740847591,7.998e-05,91245.0,91243.0,0.06812232]
[1731740860800,0.00164437,91247.0,91243.0,0.06812232]
[1731740866604,0.00164437,91247.0,91242.0,0.45223977]
[1731740866799,0.00164437,91247.0,91242.0,0.45083977]
[1731740867004,0.00164437,91247.0,91242.0,0.51896209]
[1731740869299,0.00164437,91247.0,91243.0,0.00013308]
[1731740869898,0.00164437,91247.0,91243.0,0.32893308]
[1731740871103,0.00164437,91247.0,91243.0,0.26302528]
[1731740871314,0.00164437,91247.0,91245.0,0.2628922]
[1731740871710,0.00164437,91247.0,91243.0,0.00013308]
[1731740872009,0.00164437,91247.0,91246.0,0.26245561]
[1731740872202,0.00164437,91247.0,91243.0,0.00013308]
[1731740872608,0.00013404,91252.0,91244.0,0.65741525]
[1731740872799,0.00013404,91252.0,91251.0,0.49704464]
[1731740873008,0.00013404,91252.0,91251.0,0.57828464]
[1731740873312,0.00013404,91252.0,91251.0,0.83892232]
[1731740873614,0.0051,91266.0,91251.0,0.83892232]
[1731740873915,0.13069135,91268.0,91264.0,0.06812232]
[1731740874209,0.3608,91315.0,91268.0,0.1095]
[1731740874408,0.3608,91326.0,91313.0,0.06812232]
[1731740874409,0.21510044,91314.0,91313.0,0.06812232]
[1731740874598,0.0635,91314.0,91313.0,0.14936232]
[1731740875003,0.11674663,91314.0,91313.0,0.14936232]
[1731740875204,0.0635,91314.0,91313.0,0.14936232]
[1731740876209,0.0635,91314.0,91313.0,0.25866894]
[1731740876902,0.0635,91314.0,91313.0,0.22602078]
[1731740879716,0.0332,91314.0,91313.0,0.22602078]
[1731740881008,0.00013702,91315.0,91313.0,0.32961726]
[1731740882008,0.00013702,91315.0,91313.0,0.22602078]
[1731740883314,0.00013702,91315.0,91314.0,0.10359648]
[1731740884708,0.00013702,91315.0,91313.0,0.24791889]
[1731740885710,0.3608,91356.0,91314.0,0.46439648]
[1731740885915,0.0632,91343.0,91339.0,0.10359648]
[1731740886118,0.0632,91343.0,91340.0,0.08228]
[1731740886721,0.00013052,91341.0,91340.0,0.08228]
[1731740887622,0.00013052,91341.0,91340.0,0.44308]
[1731740890813,0.00013052,91341.0,91340.0,0.2111]
[1731740891014,0.00013052,91341.0,91290.0,0.00013332]
[1731740891015,0.3608,91303.0,91290.0,0.00013332]
[1731740891219,0.46439648,91291.0,91247.0,0.3608]
[1731740891524,0.08228,91302.0,91248.0,0.08228]
[1731740891525,0.3608,91262.0,91248.0,0.08228]
[1731740891718,0.3608,91262.0,91249.0,0.08228]
[1731740891919,0.3608,91262.0,91261.0,0.05516705]
[1731740892220,0.3608,91262.0,91261.0,0.05527976]
[1731740892418,0.3608,91262.0,91261.0,0.13755976]
[1731740892611,0.35916,91262.0,91261.0,0.13755976]
[1731740894518,0.35916,91262.0,91261.0,0.05527976]
[1731740894719,0.35916,91262.0,91261.0,0.13755976]
[1731740896621,0.3608,91265.0,91261.0,0.05527976]
[1731740896929,0.3608,91265.0,91262.0,0.08232]
[1731740897227,0.3608,91265.0,91264.0,0.05516705]
[1731740898821,0.3608,91265.0,91264.0,0.13748705]
[1731740900725,0.3608,91265.0,91264.0,0.05516705]
[1731740900930,0.3608,91265.0,91264.0,0.13748705]
[1731740905123,0.3608,91265.0,91264.0,0.05516705]
[1731740905325,0.3608,91265.0,91264.0,0.13748705]
[1731740907745,0.3608,91265.0,91264.0,0.05516705]
[1731740907928,0.3608,91265.0,91264.0,0.13748705]
[1731740908130,0.3608,91265.0,91264.0,0.05516705]
[1731740908327,0.3608,91265.0,91261.0,0.00011271]
[1731740908328,0.3608,91265.0,91262.0,0.08232]
[1731740908637,0.10359648,91263.0,91262.0,0.08232]
[1731740908936,0.10359648,91263.0,91261.0,0.08243271]
[1731740911138,0.3608,91265.0,91262.0,0.15876353]
[1731740911343,0.3608,91265.0,91264.0,0.05516705]
[1731740916238,0.3608,91265.0,91262.0,0.10359648]
[1731740916729,0.3608,91265.0,91263.0,0.0313]
[1731740920134,0.3608,91265.0,91264.0,0.08504]
[1731740921244,0.3608,91265.0,91264.0,0.14020705]
[1731740923652,0.3608,91265.0,91264.0,0.16211915]
[1731740924847,0.3608,91270.0,91264.0,0.16211915]
[1731740925045,0.3608,91270.0,91264.0,0.1069521]
[1731740925254,0.3608,91270.0,91269.0,0.05516705]
[1731740926659,0.3608,91270.0,91269.0,0.14020705]
[1731740928048,0.3608,91270.0,91269.0,0.18100185]
[1731740929355,0.3608,91270.0,91269.0,0.09596185]
[1731740929545,0.3608,91270.0,91269.0,0.0407948]
[1731740929749,0.3608,91270.0,91263.0,0.08504]
[1731740929951,0.7216,91270.0,91264.0,0.05516705]
[1731740931053,0.7216,91270.0,91265.0,0.08504]
[1731740931953,0.00012142,91271.0,91269.0,0.05516705]
[1731740932152,0.00012142,91271.0,91270.0,0.08726705]
[1731740932451,0.00012142,91271.0,91270.0,0.11906705]
[1731740932651,0.36136001,91273.0,91270.0,0.11906705]
[1731740932845,0.3608,91273.0,91272.0,0.05516705]
[1731740933050,0.52864037,91283.0,91272.0,0.41596705]
[1731740933250,0.16218036,91285.0,91282.0,0.05516705]
[1731740933452,0.3608,91286.0,91283.0,0.11734]
[1731740933650,0.36136001,91286.0,91285.0,0.05516705]
[1731740933851,0.3608,91286.0,91285.0,0.05516705]
[1731740938058,0.3608,91286.0,91285.0,0.08851902]
[1731740942059,0.3608,91286.0,91285.0,0.11839197]
[1731740942252,0.3608,91286.0,91285.0,0.03335197]
[1731740942459,0.393,91286.0,91280.0,0.08504]
[1731740942657,0.393,91286.0,91278.0,0.14020705]
[1731740942658,0.7538,91286.0,91278.0,0.14020705]
[1731740943356,0.7538,91286.0,91285.0,0.05516705]
[1731740943357,0.7216,91286.0,91285.0,0.05516705]
[1731740944348,0.7216,91286.0,91285.0,0.0722842]
[1731740947257,0.7216,91286.0,91285.0,0.07228423]
[1731740950160,0.7216,91286.0,91285.0,0.10944]
[1731740950465,0.7216,91286.0,91285.0,0.10944522]
[1731740950859,0.7216,91286.0,91285.0,0.10588327]
[1731740952156,0.7216,91286.0,91285.0,0.10944143]
[1731740953163,0.0051,91295.0,91289.0,0.05516705]
[1731740953364,0.3608,91308.0,91303.0,0.10359648]
[1731740953563,0.3608,91308.0,91307.0,0.05516705]
[1731740953767,0.3608,91308.0,91307.0,0.07228423]
[1731740954274,0.3608,91308.0,91307.0,0.05516705]
[1731740954454,0.3608,91308.0,91307.0,0.07581343]
[1731740954857,0.3608,91308.0,91307.0,0.05870121]
[1731740955066,0.3608,91308.0,91307.0,0.07581331]
[1731740957774,0.00164429,91310.0,91307.0,0.07227915]
[1731740958068,0.00164429,91310.0,91304.0,0.08252]
[1731740958069,0.00164429,91310.0,91309.0,0.05516705]
[1731740958375,0.00164429,91310.0,91309.0,0.07578221]
[1731740959871,0.00164429,91310.0,91309.0,0.07578106]
[1731740961173,0.00164429,91310.0,91309.0,0.05516705]
[1731740961371,0.00164429,91310.0,91309.0,0.07578682]
[1731740961571,0.00164429,91310.0,91309.0,0.09289813]
[1731740961967,0.00013775,91317.0,91309.0,0.09289813]
[1731740962166,0.00013775,91317.0,91316.0,0.15876353]
[1731740962469,0.00013775,91317.0,91316.0,0.26190352]
[1731740962776,0.36172,91332.0,91316.0,0.26190352]
[1731740962971,0.36172,91332.0,91331.0,0.05516705]